[Event "Torneo Nuevo Centro. Jornada 11"]
[Site "Chess.com"]
[Date "2020.08.28"]
[Round "3"]
[White "Perez Garcia, Jose Miguel"]
[Black "Pardo Ruiz, Carlos"]
[Result "0-1"]
[WhiteElo "2031"]
[BlackElo "1705"]
[TimeControl "180+2"]
[EndTime "10:57:09 PDT"]
[Termination "Victoria de Carlitoscarlsen por abandono"]

1. e4 {[%clk 0:03:01.3]} 1... Nf6 {[%clk 0:03:00.2]} 2. Bc4 {[%clk 0:02:55.1]}
2... Nxe4 {[%clk 0:03:00.2]} 3. Bxf7+ {[%clk 0:02:54.3]} 3... Kxf7 {[%clk
0:03:00.5]} 4. Qh5+ {[%clk 0:02:56.2]} 4... g6 {[%clk 0:02:57.9]} 5. Qd5+ {[%clk
0:02:56.9]} 5... Ke8 {[%clk 0:02:59.3]} 6. Qxe4 {[%clk 0:02:58.8]} 6... d5
{[%clk 0:03:00.3]} 7. Qe2 {[%clk 0:02:59.5]} 7... Nc6 {[%clk 0:03:00.1]} 8. Nf3
{[%clk 0:02:57.1]} 8... Bg7 {[%clk 0:03:00.1]} 9. c3 {[%clk 0:02:57.7]} 9... e5
{[%clk 0:02:58.3]} 10. d3 {[%clk 0:02:58.8]} 10... Bf5 {[%clk 0:02:55.3]} 11. h3
{[%clk 0:02:58.6]} 11... Rf8 {[%clk 0:02:51.7]} 12. O-O {[%clk 0:02:55.3]} 12...
Kf7 {[%clk 0:02:41.5]} 13. Bg5 {[%clk 0:02:53.5]} 13... Qd7 {[%clk 0:02:39.1]}
14. Nbd2 {[%clk 0:02:51]} 14... Kg8 {[%clk 0:02:37.8]} 15. Rfe1 {[%clk
0:02:51.7]} 15... Rae8 {[%clk 0:02:35.1]} 16. Rad1 {[%clk 0:02:46.8]} 16... d4
{[%clk 0:02:12.9]} 17. Ne4 {[%clk 0:02:43.3]} 17... dxc3 {[%clk 0:02:04.5]} 18.
bxc3 {[%clk 0:02:42.7]} 18... Bxe4 {[%clk 0:02:01.7]} 19. dxe4 {[%clk
0:02:43.6]} 19... Qe6 {[%clk 0:01:59.3]} 20. a4 {[%clk 0:02:38.4]} 20... Na5
{[%clk 0:01:47.9]} 21. Qb5 {[%clk 0:02:35]} 21... b6 {[%clk 0:01:40]} 22. Qd5
{[%clk 0:02:31.4]} 22... Qxd5 {[%clk 0:01:37.7]} 23. Rxd5 {[%clk 0:02:33.3]}
23... Rf7 {[%clk 0:01:20.6]} 24. Red1 {[%clk 0:02:33.5]} 24... Nc4 {[%clk
0:01:15.5]} 25. Rd7 {[%clk 0:02:24.6]} 25... Nd6 {[%clk 0:01:14.3]} 26. Rxf7
{[%clk 0:02:20.2]} 26... Kxf7 {[%clk 0:00:57]} 27. Nd2 {[%clk 0:02:17.9]} 27...
h6 {[%clk 0:00:55.3]} 28. Bh4 {[%clk 0:02:18.8]} 28... g5 {[%clk 0:00:55.4]} 29.
Bg3 {[%clk 0:02:20.1]} 29... Rd8 {[%clk 0:00:56.2]} 30. Ra1 {[%clk 0:02:09.4]}
30... Nb7 {[%clk 0:00:45.5]} 31. Nf3 {[%clk 0:02:06.9]} 31... Ke6 {[%clk
0:00:43.9]} 32. Kf1 {[%clk 0:02:07.8]} 32... Nc5 {[%clk 0:00:44.1]} 33. a5
{[%clk 0:02:05.4]} 33... Nxe4 {[%clk 0:00:43.2]} 34. axb6 {[%clk 0:02:06]} 34...
axb6 {[%clk 0:00:41.9]} 35. Bxe5 {[%clk 0:02:02.1]} 35... Bxe5 {[%clk
0:00:41.5]} 36. Re1 {[%clk 0:02:03.4]} 36... Nd2+ {[%clk 0:00:42.4]} 37. Ke2
{[%clk 0:01:50.4]} 37... Nxf3 {[%clk 0:00:42.4]} 38. Kxf3 {[%clk 0:01:52.3]}
38... Kf6 {[%clk 0:00:42.9]} 39. Re3 {[%clk 0:01:51.7]} 39... c5 {[%clk
0:00:41]} 40. g3 {[%clk 0:01:51.8]} 40... b5 {[%clk 0:00:41.1]} 41. Ke4 {[%clk
0:01:50.4]} 41... b4 {[%clk 0:00:39]} 42. cxb4 {[%clk 0:01:50.7]} 42... cxb4
{[%clk 0:00:40.9]} 43. Rf3+ {[%clk 0:01:52.3]} 43... Ke6 {[%clk 0:00:40.8]} 44.
Rf5 {[%clk 0:01:52.4]} 44... Rd4+ {[%clk 0:00:41.5]} 0

[Event "Torneo Nuevo Centro. Jornada 11"]
[Site "Chess.com"]
[Date "2020.08.28"]
[Round "3"]
[White "Tormos Beltran, Maite"]
[Black "Donate Peris, Jose Manuel"]
[Result "1-0"]
[WhiteElo "1464"]
[BlackElo "1517"]
[TimeControl "180+2"]
[EndTime "10:57:09 PDT"]
[Termination "Victoria de TORBEL79 por jaque mate"]

1. d4 {[%clk 0:02:52.1]} 1... Nf6 {[%clk 0:02:59.1]} 2. c4 {[%clk 0:02:52.6]}
2... e6 {[%clk 0:02:59.5]} 3. Nc3 {[%clk 0:02:52.9]} 3... Bb4 {[%clk 0:02:59.3]}
4. Bd2 {[%clk 0:02:52.3]} 4... d5 {[%clk 0:02:58]} 5. c5 {[%clk 0:02:49.9]} 5...
b6 {[%clk 0:02:47.7]} 6. a3 {[%clk 0:02:47.5]} 6... Bxc3 {[%clk 0:02:47.2]} 7.
Bxc3 {[%clk 0:02:47.9]} 7... bxc5 {[%clk 0:02:46.8]} 8. dxc5 {[%clk 0:02:45.5]}
8... Ba6 {[%clk 0:02:46.4]} 9. Qa4+ {[%clk 0:02:44.7]} 9... Qd7 {[%clk
0:02:42.5]} 10. Qb4 {[%clk 0:02:26.9]} 10... Nc6 {[%clk 0:02:33.2]} 11. Qa4
{[%clk 0:02:24.8]} 11... Bb7 {[%clk 0:02:21.6]} 12. Nf3 {[%clk 0:02:18.5]} 12...
O-O {[%clk 0:02:19.1]} 13. e3 {[%clk 0:02:18.3]} 13... Rab8 {[%clk 0:02:12.3]}
14. b4 {[%clk 0:02:11.3]} 14... Ne4 {[%clk 0:02:08.8]} 15. Bb2 {[%clk
0:02:05.3]} 15... Qd8 {[%clk 0:01:59.6]} 16. Bd3 {[%clk 0:01:57.1]} 16... Ne7
{[%clk 0:01:56.2]} 17. O-O {[%clk 0:01:52.1]} 17... Bc6 {[%clk 0:01:45.6]} 18.
Qc2 {[%clk 0:01:50.9]} 18... Ng6 {[%clk 0:01:39]} 19. Rad1 {[%clk 0:01:50.5]}
19... Qe7 {[%clk 0:01:35.1]} 20. Ne5 {[%clk 0:01:46.4]} 20... Nxe5 {[%clk
0:01:33.2]} 21. Bxe5 {[%clk 0:01:46.4]} 21... f6 {[%clk 0:01:31.7]} 22. Bg3
{[%clk 0:01:41.8]} 22... Nxg3 {[%clk 0:01:28.1]} 23. Bxh7+ {[%clk 0:01:36.8]}
23... Kh8 {[%clk 0:01:26.9]} 24. hxg3 {[%clk 0:01:32.3]} 24... f5 {[%clk
0:01:26]} 25. Bg6 {[%clk 0:01:26.8]} 25... Qg5 {[%clk 0:01:15.8]} 26. Bxf5
{[%clk 0:01:09.8]} 26... Rxf5 {[%clk 0:01:14.8]} 27. f4 {[%clk 0:01:03]} 27...
Qh6 {[%clk 0:01:10.8]} 28. Kf2 {[%clk 0:01:00.2]} 28... g5 {[%clk 0:01:06.7]}
29. Rh1 {[%clk 0:00:59.8]} 29... Qxh1 {[%clk 0:01:01]} 30. Rxh1+ {[%clk
0:00:55.7]} 30... Kg7 {[%clk 0:01:01.5]} 31. g4 {[%clk 0:00:52.5]} 31... Rff8
{[%clk 0:00:55.2]} 32. Qh7+ {[%clk 0:00:52]} 32... Kf6 {[%clk 0:00:55.6]} 33.
Rh6# {[%clk 0:00:52.1]} 1

[Event "Torneo Nuevo Centro. Jornada 11"]
[Site "Chess.com"]
[Date "2020.08.28"]
[Round "3"]
[White "Marques Montolio, Luis"]
[Black "Sampedro Roig, Josep Francesc"]
[Result "0-1"]
[WhiteElo "1472"]
[BlackElo "1838"]
[TimeControl "180+2"]
[EndTime "10:57:55 PDT"]
[Termination "Victoria de Abrekurios por abandono"]

1. e4 {[%clk 0:03:01.9]} 1... Nf6 {[%clk 0:03:01.9]} 2. Nc3 {[%clk 0:03:00.8]}
2... d5 {[%clk 0:03:02.3]} 3. exd5 {[%clk 0:03:01]} 3... Nxd5 {[%clk 0:03:02.9]}
4. Nxd5 {[%clk 0:03:01.9]} 4... Qxd5 {[%clk 0:03:03.4]} 5. d4 {[%clk 0:02:55.2]}
5... Bf5 {[%clk 0:03:02.6]} 6. c4 {[%clk 0:02:53.6]} 6... Qe4+ {[%clk
0:02:51.2]} 7. Qe2 {[%clk 0:02:54.1]} 7... e6 {[%clk 0:02:49.8]} 8. Qxe4 {[%clk
0:02:54.1]} 8... Bxe4 {[%clk 0:02:50.4]} 9. Be3 {[%clk 0:02:50.8]} 9... Nc6
{[%clk 0:02:49.4]} 10. f3 {[%clk 0:02:51.9]} 10... Bb4+ {[%clk 0:02:41.8]} 11.
Kf2 {[%clk 0:02:49.3]} 11... Bg6 {[%clk 0:02:40.2]} 12. a3 {[%clk 0:02:48.2]}
12... Be7 {[%clk 0:02:38.9]} 13. Ne2 {[%clk 0:02:47.1]} 13... O-O-O {[%clk
0:02:37.5]} 14. b4 {[%clk 0:02:39.4]} 14... Bf6 {[%clk 0:02:35.1]} 15. d5 {[%clk
0:02:37.7]} 15... exd5 {[%clk 0:02:32.7]} 16. cxd5 {[%clk 0:02:38.4]} 16... Bxa1
{[%clk 0:02:32.3]} 17. dxc6 {[%clk 0:02:37.3]} 17... b6 {[%clk 0:02:21.7]} 18.
Nf4 {[%clk 0:02:37.3]} 18... Bb2 {[%clk 0:02:13.7]} 19. a4 {[%clk 0:02:33.3]}
19... Bc2 {[%clk 0:02:12.5]} 20. a5 {[%clk 0:02:26.7]} 20... Ba4 {[%clk
0:02:04.7]} 21. axb6 {[%clk 0:02:23.2]} 21... cxb6 {[%clk 0:01:50.8]} 22. Ba6+
{[%clk 0:02:20.8]} 22... Kc7 {[%clk 0:01:43.9]} 23. b5 {[%clk 0:02:20.7]} 23...
Be5 {[%clk 0:01:37.1]} 24. Nh5 {[%clk 0:02:07.9]} 24... Rhe8 {[%clk 0:01:32.1]}
25. f4 {[%clk 0:02:05.4]} 25... Bd6 {[%clk 0:01:29.9]} 26. Nxg7 {[%clk
0:02:01.4]} 26... Re4 {[%clk 0:01:22.7]} 27. g3 {[%clk 0:01:56]} 27... Bc5
{[%clk 0:01:12.2]} 28. Bxc5 {[%clk 0:01:50.6]} 28... bxc5 {[%clk 0:01:12.6]} 29.
Kf3 {[%clk 0:01:51.6]} 29... Rb4 {[%clk 0:01:06.7]} 30. Nf5 {[%clk 0:01:44.5]}
30... Bxb5 {[%clk 0:00:58.4]} 31. Bxb5 {[%clk 0:01:42.1]} 31... Rxb5 {[%clk
0:00:59.1]} 32. Ra1 {[%clk 0:01:39.2]} 32... a5 {[%clk 0:00:58.4]} 33. Re1
{[%clk 0:01:35.1]} 33... Kxc6 {[%clk 0:00:51]} 34. Ne7+ {[%clk 0:01:32.8]} 34...
Kb6 {[%clk 0:00:43.1]} 35. Nf5 {[%clk 0:01:29.9]} 35... Rd7 {[%clk 0:00:40.7]}
36. Re8 {[%clk 0:01:29.9]} 36... a4 {[%clk 0:00:38.9]} 37. Rb8+ {[%clk
0:01:26.4]} 37... Ka5 {[%clk 0:00:39.6]} 38. Ra8+ {[%clk 0:01:27.2]} 38... Kb4
{[%clk 0:00:39.3]} 39. Ne3 {[%clk 0:01:26.9]} 39... Ra5 {[%clk 0:00:38.1]} 40.
Nc2+ {[%clk 0:01:20.4]} 40... Kb5 {[%clk 0:00:38.4]} 41. Rb8+ {[%clk 0:01:20.7]}
41... Kc4 {[%clk 0:00:36.3]} 42. Ne3+ {[%clk 0:01:19.3]} 42... Kc3 {[%clk
0:00:36.4]} 43. Rc8 {[%clk 0:01:17.6]} 43... a3 {[%clk 0:00:36.3]} 44. Rb8
{[%clk 0:01:18.3]} 44... a2 {[%clk 0:00:37.2]} 0

[Event "Torneo Nuevo Centro. Jornada 11"]
[Site "Chess.com"]
[Date "2020.08.28"]
[Round "3"]
[White "Bercaru, Vlad Ionut"]
[Black "Kovacevic, Slobodan"]
[Result "1/2-1/2"]
[WhiteElo "1740"]
[BlackElo "2252"]
[TimeControl "180+2"]
[EndTime "10:58:01 PDT"]
[Termination "Tablas por repeticiÃ³n"]

1. c4 {[%clk 0:03:01.9]} 1... c5 {[%clk 0:02:58.8]} 2. Nc3 {[%clk 0:03:00.5]}
2... Nf6 {[%clk 0:02:56.7]} 3. g3 {[%clk 0:03:01.2]} 3... e6 {[%clk 0:02:55.8]}
4. Bg2 {[%clk 0:02:59.1]} 4... a6 {[%clk 0:02:56.1]} 5. Nf3 {[%clk 0:02:53]}
5... Qc7 {[%clk 0:02:56]} 6. O-O {[%clk 0:02:51]} 6... b6 {[%clk 0:02:56.2]} 7.
d4 {[%clk 0:02:29.3]} 7... cxd4 {[%clk 0:02:54.5]} 8. Nxd4 {[%clk 0:02:28.4]}
8... Bb7 {[%clk 0:02:53.8]} 9. b3 {[%clk 0:02:23.8]} 9... d6 {[%clk 0:02:52.3]}
10. Bb2 {[%clk 0:02:16.4]} 10... Nbd7 {[%clk 0:02:51.4]} 11. e4 {[%clk
0:01:54.6]} 11... Be7 {[%clk 0:02:50.5]} 12. Re1 {[%clk 0:01:52.7]} 12... O-O
{[%clk 0:02:49.6]} 13. Qd2 {[%clk 0:01:48.7]} 13... Rac8 {[%clk 0:02:48.5]} 14.
Rad1 {[%clk 0:01:46.2]} 14... Rfe8 {[%clk 0:02:47.2]} 15. Re2 {[%clk 0:01:20.4]}
15... Red8 {[%clk 0:02:45.9]} 16. Nc2 {[%clk 0:01:13.9]} 16... Qb8 {[%clk
0:02:41]} 17. Ne3 {[%clk 0:01:09.5]} 17... Nc5 {[%clk 0:02:38.7]} 18. f3 {[%clk
0:00:59.8]} 18... b5 {[%clk 0:02:31.9]} 19. cxb5 {[%clk 0:00:57.4]} 19... axb5
{[%clk 0:02:31.1]} 20. Nxb5 {[%clk 0:00:56.2]} 20... Bxe4 {[%clk 0:02:22.1]} 21.
fxe4 {[%clk 0:00:49.3]} 21... Qxb5 {[%clk 0:02:20.1]} 22. Nc4 {[%clk 0:00:43.2]}
22... Qa6 {[%clk 0:02:03]} 23. Bc3 {[%clk 0:00:35.5]} 23... Ncxe4 {[%clk
0:01:55.3]} 24. Bxe4 {[%clk 0:00:32.8]} 24... d5 {[%clk 0:01:53.3]} 25. Bxh7+
{[%clk 0:00:24]} 25... Kxh7 {[%clk 0:01:48]} 26. Ne5 {[%clk 0:00:22.7]} 26...
Kg8 {[%clk 0:01:47]} 27. Kh1 {[%clk 0:00:17.2]} 27... Ne4 {[%clk 0:01:45.7]} 28.
Rxe4 {[%clk 0:00:11.5]} 28... dxe4 {[%clk 0:01:43.9]} 29. Qc2 {[%clk 0:00:11.6]}
29... Rd5 {[%clk 0:01:36.8]} 30. Qf2 {[%clk 0:00:10.7]} 30... Bc5 {[%clk
0:01:33.2]} 31. Qxf7+ {[%clk 0:00:10.2]} 31... Kh7 {[%clk 0:01:28.9]} 32. Qh5+
{[%clk 0:00:10.1]} 32... Kg8 {[%clk 0:01:24.9]} 33. Qf7+ {[%clk 0:00:10.7]}
33... Kh7 {[%clk 0:00:52.4]} 34. Qh5+ {[%clk 0:00:10.9]} 34... Kg8 {[%clk
0:00:49.9]} 35. Qf7+ {[%clk 0:00:11.5]} 1/2-1

[Event "Torneo Nuevo Centro. Jornada 11"]
[Site "Chess.com"]
[Date "2020.08.28"]
[Round "3"]
[White "Yatseta Fernandez, Marc Kazymyr"]
[Black "Donate Moreno, Silvia"]
[Result "0-1"]
[WhiteElo "1513"]
[BlackElo "1842"]
[TimeControl "180+2"]
[EndTime "10:58:05 PDT"]
[Termination "Victoria de monetesSAL por jaque mate"]

1. d4 {[%clk 0:03:00.2]} 1... Nf6 {[%clk 0:03:00.6]} 2. c4 {[%clk 0:03:00.8]}
2... g6 {[%clk 0:03:01.7]} 3. Nf3 {[%clk 0:03:00]} 3... Bg7 {[%clk 0:03:02.9]}
4. g3 {[%clk 0:02:59.8]} 4... O-O {[%clk 0:03:02.1]} 5. Bg2 {[%clk 0:03:00.4]}
5... d6 {[%clk 0:03:03.4]} 6. O-O {[%clk 0:03:01.2]} 6... Nbd7 {[%clk
0:03:03.9]} 7. b3 {[%clk 0:02:56]} 7... Ne4 {[%clk 0:03:03.1]} 8. Bb2 {[%clk
0:02:51.4]} 8... c5 {[%clk 0:03:02.5]} 9. Nbd2 {[%clk 0:02:44.2]} 9... Nxd2
{[%clk 0:02:58.4]} 10. Qxd2 {[%clk 0:02:43.1]} 10... Rb8 {[%clk 0:02:58.7]} 11.
Rfd1 {[%clk 0:02:29.7]} 11... b6 {[%clk 0:02:53.4]} 12. e4 {[%clk 0:02:08]}
12... cxd4 {[%clk 0:02:47.3]} 13. Bxd4 {[%clk 0:02:06.1]} 13... Bb7 {[%clk
0:02:44.9]} 14. Bxg7 {[%clk 0:02:00.9]} 14... Kxg7 {[%clk 0:02:46.8]} 15. Qc3+
{[%clk 0:01:54.2]} 15... Kg8 {[%clk 0:02:46.4]} 16. e5 {[%clk 0:01:49.8]} 16...
Bxf3 {[%clk 0:02:45.9]} 17. Bxf3 {[%clk 0:01:50]} 17... Nxe5 {[%clk 0:02:46]}
18. Bd5 {[%clk 0:01:38.5]} 18... Qc7 {[%clk 0:02:43.4]} 19. f4 {[%clk
0:01:28.2]} 19... Ng4 {[%clk 0:02:39.7]} 20. Kg2 {[%clk 0:01:18.1]} 20... Nf6
{[%clk 0:02:27.1]} 21. Rac1 {[%clk 0:01:06.6]} 21... Rfc8 {[%clk 0:02:25]} 22.
Qe3 {[%clk 0:00:59.9]} 22... Qd7 {[%clk 0:02:16.2]} 23. Rc2 {[%clk 0:00:36.1]}
23... Rc7 {[%clk 0:02:11.2]} 24. Re2 {[%clk 0:00:35.5]} 24... Rbc8 {[%clk
0:01:23.5]} 25. Rde1 {[%clk 0:00:33.8]} 25... Kf8 {[%clk 0:01:24]} 26. h3 {[%clk
0:00:21.5]} 26... Nxd5 {[%clk 0:01:21.9]} 27. cxd5 {[%clk 0:00:21.6]} 27... Rc2
{[%clk 0:01:22.4]} 28. Qd4 {[%clk 0:00:13.4]} 28... Kg8 {[%clk 0:01:17.6]} 29.
Rxc2 {[%clk 0:00:08.7]} 29... Rxc2+ {[%clk 0:01:19.5]} 30. Kf3 {[%clk
0:00:08.4]} 30... Qxh3 {[%clk 0:01:05]} 31. Rxe7 {[%clk 0:00:07.3]} 31... Qh1+
{[%clk 0:00:47.1]} 32. Kg4 {[%clk 0:00:06.1]} 32... Qh5# {[%clk 0:00:46.6]} 0

[Event "Torneo Nuevo Centro. Jornada 11"]
[Site "Chess.com"]
[Date "2020.08.28"]
[Round "3"]
[White "Fente Fernandez, Jose Ignacio"]
[Black "Luque Saiz, Andrés"]
[Result "0-1"]
[WhiteElo "1567"]
[BlackElo "2040"]
[TimeControl "180+2"]
[EndTime "10:58:15 PDT"]
[Termination "Victoria de Chuch1n por tiempo"]

1. e4 {[%clk 0:03:01.9]} 1... c6 {[%clk 0:03:01]} 2. d4 {[%clk 0:03:02.3]} 2...
d5 {[%clk 0:03:02.9]} 3. e5 {[%clk 0:03:03.8]} 3... c5 {[%clk 0:03:04.1]} 4. c3
{[%clk 0:03:04.7]} 4... Nc6 {[%clk 0:03:04.1]} 5. Nf3 {[%clk 0:03:05.4]} 5...
Bg4 {[%clk 0:03:04.3]} 6. Be3 {[%clk 0:02:59.8]} 6... e6 {[%clk 0:03:03.7]} 7.
dxc5 {[%clk 0:02:51.3]} 7... Bxf3 {[%clk 0:03:00.6]} 8. Qxf3 {[%clk 0:02:50.1]}
8... Nxe5 {[%clk 0:03:00.5]} 9. Qd1 {[%clk 0:02:39.6]} 9... Nf6 {[%clk
0:02:52.3]} 10. Nd2 {[%clk 0:02:22.9]} 10... Be7 {[%clk 0:02:48.6]} 11. Bb5+
{[%clk 0:01:52.3]} 11... Nc6 {[%clk 0:02:41.6]} 12. Qa4 {[%clk 0:01:47.9]} 12...
Qc7 {[%clk 0:02:32.2]} 13. Nf3 {[%clk 0:01:19.2]} 13... O-O {[%clk 0:02:28.3]}
14. O-O {[%clk 0:01:13.9]} 14... Ne4 {[%clk 0:02:21.6]} 15. Nd4 {[%clk
0:00:57.7]} 15... Nxc5 {[%clk 0:02:07.5]} 16. Qc2 {[%clk 0:00:48.6]} 16... Ne4
{[%clk 0:01:52.7]} 17. Bd3 {[%clk 0:00:36.7]} 17... Nf6 {[%clk 0:01:49.2]} 18.
Nxc6 {[%clk 0:00:28.7]} 18... bxc6 {[%clk 0:01:51.1]} 19. Bg5 {[%clk 0:00:27.6]}
19... h6 {[%clk 0:01:51.2]} 20. Bxf6 {[%clk 0:00:24.9]} 20... Bxf6 {[%clk
0:01:53.1]} 21. Rfe1 {[%clk 0:00:16.2]} 21... c5 {[%clk 0:01:49.6]} 22. c4
{[%clk 0:00:14.7]} 22... Rab8 {[%clk 0:01:39.1]} 23. Rab1 {[%clk 0:00:12.2]}
23... Qa5 {[%clk 0:01:15.8]} 24. b3 {[%clk 0:00:06.6]} 24... Bc3 {[%clk
0:00:47.6]} 25. Re3 {[%clk 0:00:06.7]} 25... d4 {[%clk 0:00:43.6]} 26. Rg3
{[%clk 0:00:05.7]} 26... Qc7 {[%clk 0:00:42.4]} 27. Qe2 {[%clk 0:00:05]} 27...
e5 {[%clk 0:00:40.5]} 28. Qe4 {[%clk 0:00:04.3]} 28... f5 {[%clk 0:00:37.8]} 29.
Qh4 {[%clk 0:00:04.4]} 29... e4 {[%clk 0:00:30.5]} 30. Be2 {[%clk 0:00:03.9]}
30... Qd6 {[%clk 0:00:22.9]} 0

[Event "Torneo Nuevo Centro. Jornada 11"]
[Site "Chess.com"]
[Date "2020.08.28"]
[Round "3"]
[White "Chofre Murcia, Adrián"]
[Black "Carbonell Bofill, Carlos Eloy"]
[Result "0-1"]
[WhiteElo "1631"]
[BlackElo "1908"]
[TimeControl "180+2"]
[EndTime "10:58:23 PDT"]
[Termination "Victoria de MFCARLOS por jaque mate"]

1. e4 {[%clk 0:03:01.9]} 1... e6 {[%clk 0:03:00.3]} 2. Nc3 {[%clk 0:03:02.9]}
2... d5 {[%clk 0:03:01.4]} 3. exd5 {[%clk 0:03:03.9]} 3... exd5 {[%clk
0:03:03.3]} 4. d4 {[%clk 0:03:05.1]} 4... Nf6 {[%clk 0:03:03.3]} 5. Nf3 {[%clk
0:03:05.7]} 5... Bb4 {[%clk 0:03:03]} 6. Bd2 {[%clk 0:03:05.9]} 6... O-O {[%clk
0:03:04.3]} 7. a3 {[%clk 0:03:06.4]} 7... Re8+ {[%clk 0:03:04.3]} 8. Be2 {[%clk
0:03:07.2]} 8... Bd6 {[%clk 0:02:58.3]} 9. O-O {[%clk 0:03:07.5]} 9... c6 {[%clk
0:02:56.1]} 10. Re1 {[%clk 0:03:06.9]} 10... Bf5 {[%clk 0:02:56.3]} 11. Bg5
{[%clk 0:03:04.6]} 11... Nbd7 {[%clk 0:02:55.6]} 12. Qd2 {[%clk 0:03:03.6]}
12... h6 {[%clk 0:02:55.5]} 13. Bh4 {[%clk 0:03:03.3]} 13... Qb6 {[%clk
0:02:51.1]} 14. Na4 {[%clk 0:02:59]} 14... Qc7 {[%clk 0:02:49.1]} 15. Nc3 {[%clk
0:02:57.5]} 15... Ne4 {[%clk 0:02:49.3]} 16. Nxe4 {[%clk 0:02:56.1]} 16... dxe4
{[%clk 0:02:50]} 17. Ng5 {[%clk 0:02:44.1]} 17... Bf4 {[%clk 0:02:43.1]} 18. Ne6
{[%clk 0:02:20.2]} 18... Rxe6 {[%clk 0:02:36.3]} 19. Qc3 {[%clk 0:02:17.6]}
19... Bxh2+ {[%clk 0:02:33.8]} 20. Kh1 {[%clk 0:02:18.2]} 20... g5 {[%clk
0:02:29.9]} 21. d5 {[%clk 0:02:11.9]} 21... cxd5 {[%clk 0:02:22.7]} 22. Qd4
{[%clk 0:01:53.7]} 22... gxh4 {[%clk 0:02:17.7]} 23. Qxd5 {[%clk 0:01:53.2]}
23... Bg6 {[%clk 0:01:58.9]} 24. Rad1 {[%clk 0:01:51.9]} 24... Nf6 {[%clk
0:01:57.9]} 25. Qd2 {[%clk 0:01:45.5]} 25... Bf4 {[%clk 0:01:57.2]} 26. Qb4
{[%clk 0:01:40.3]} 26... a5 {[%clk 0:01:55.9]} 27. Qb5 {[%clk 0:01:34.2]} 27...
Re5 {[%clk 0:01:54.6]} 28. Qb3 {[%clk 0:01:30.4]} 28... e3 {[%clk 0:01:44.7]}
29. Bf3 {[%clk 0:01:18.5]} 29... Bxc2 {[%clk 0:01:43.2]} 30. Qxb7 {[%clk
0:01:03.3]} 30... Qxb7 {[%clk 0:01:34.7]} 31. Bxb7 {[%clk 0:01:03.9]} 31... Rb8
{[%clk 0:01:34.2]} 32. Rc1 {[%clk 0:00:48.6]} 32... Rxb7 {[%clk 0:01:26.8]} 33.
Rxc2 {[%clk 0:00:48.5]} 33... exf2 {[%clk 0:01:27.2]} 34. Rf1 {[%clk 0:00:48.3]}
34... Bg3 {[%clk 0:01:26.5]} 35. Rc8+ {[%clk 0:00:45.5]} 35... Kg7 {[%clk
0:01:25.5]} 36. Rcc1 {[%clk 0:00:42.4]} 36... Rxb2 {[%clk 0:01:23.9]} 37. a4
{[%clk 0:00:42]} 37... Ng4 {[%clk 0:01:23.5]} 38. Rc7 {[%clk 0:00:33.8]} 38...
Re1 {[%clk 0:01:17.7]} 39. Rc1 {[%clk 0:00:33.9]} 39... Rxc1 {[%clk 0:00:51.7]}
40. Rxc1 {[%clk 0:00:32.6]} 40... Re2 {[%clk 0:00:39.4]} 41. Rf1 {[%clk
0:00:31]} 41... Re1 {[%clk 0:00:40]} 42. Rxe1 {[%clk 0:00:27.2]} 42... fxe1=Q#
{[%clk 0:00:41.9]} 0

[Event "Torneo Nuevo Centro. Jornada 11"]
[Site "Chess.com"]
[Date "2020.08.28"]
[Round "3"]
[White "Serarols Mabras, Bernat"]
[Black "Rodriguez Rodriguez, Joan David "]
[Result "1-0"]
[WhiteElo "2446"]
[BlackElo "1790"]
[TimeControl "180+2"]
[EndTime "10:58:31 PDT"]
[Termination "Victoria de bernatserarols por abandono"]

1. d4 {[%clk 0:02:31.4]} 1... d6 {[%clk 0:02:59.6]} 2. c4 {[%clk 0:02:28.7]}
2... Nf6 {[%clk 0:02:59.3]} 3. Nf3 {[%clk 0:02:25.9]} 3... Nbd7 {[%clk
0:03:00.2]} 4. Nc3 {[%clk 0:02:27.2]} 4... e5 {[%clk 0:03:00.8]} 5. e3 {[%clk
0:02:27.6]} 5... Be7 {[%clk 0:03:01.8]} 6. Be2 {[%clk 0:02:28.2]} 6... h6 {[%clk
0:03:02.9]} 7. O-O {[%clk 0:02:29.5]} 7... g5 {[%clk 0:03:03.8]} 8. dxe5 {[%clk
0:02:26.1]} 8... dxe5 {[%clk 0:02:59.7]} 9. Nd5 {[%clk 0:02:27.3]} 9... c6
{[%clk 0:02:53]} 10. Nxe7 {[%clk 0:02:28.5]} 10... Qxe7 {[%clk 0:02:51.5]} 11.
b3 {[%clk 0:02:30.4]} 11... Nf8 {[%clk 0:02:36.5]} 12. a4 {[%clk 0:02:28.2]}
12... Ng6 {[%clk 0:02:37.2]} 13. Ba3 {[%clk 0:02:28.3]} 13... c5 {[%clk
0:02:25.3]} 14. Bb2 {[%clk 0:02:25.9]} 14... b6 {[%clk 0:02:24.4]} 15. Qc2
{[%clk 0:02:26.8]} 15... Bb7 {[%clk 0:02:20.7]} 16. a5 {[%clk 0:02:27.2]} 16...
O-O {[%clk 0:02:13.1]} 17. Nd2 {[%clk 0:02:28.4]} 17... Rad8 {[%clk 0:02:11.9]}
18. Bf3 {[%clk 0:02:27.6]} 18... e4 {[%clk 0:01:49.9]} 19. Be2 {[%clk
0:02:28.5]} 19... Kg7 {[%clk 0:01:35.3]} 20. Rfd1 {[%clk 0:02:24.7]} 20... Rd7
{[%clk 0:01:35.5]} 21. axb6 {[%clk 0:02:24.2]} 21... axb6 {[%clk 0:01:36.4]} 22.
Nf1 {[%clk 0:02:24.1]} 22... Rfd8 {[%clk 0:01:36.6]} 23. Ng3 {[%clk 0:02:24.4]}
23... Kh7 {[%clk 0:01:24.6]} 24. Qc3 {[%clk 0:01:50.5]} 24... Ne8 {[%clk
0:01:05.1]} 25. Rxd7 {[%clk 0:01:17.3]} 25... Rxd7 {[%clk 0:01:04.3]} 26. Bg4
{[%clk 0:01:17]} 26... Rd3 {[%clk 0:00:58]} 27. Qc2 {[%clk 0:01:16.7]} 27... Nf6
{[%clk 0:00:50.2]} 28. Bf5 {[%clk 0:01:17.5]} 28... Qd6 {[%clk 0:00:36.5]} 29.
h3 {[%clk 0:01:16.8]} 29... h5 {[%clk 0:00:17.5]} 30. Ra8 {[%clk 0:01:12]} 30...
Bxa8 {[%clk 0:00:17]} 31. f3 {[%clk 0:01:07.4]} 31... exf3 {[%clk 0:00:16.7]}
32. Bxd3 {[%clk 0:01:07.9]} 32... fxg2 {[%clk 0:00:17.5]} 33. Nf5 {[%clk
0:01:03.9]} 33... Qc6 {[%clk 0:00:13]} 34. Qe2 {[%clk 0:00:58.1]} 34... Qf3
{[%clk 0:00:02.9]} 35. Bxf6 {[%clk 0:00:38.7]} 35... Qxe2 {[%clk 0:00:02.6]} 36.
Bxe2 {[%clk 0:00:39.9]} 36... Ne5 {[%clk 0:00:03.2]} 37. Bxe5 {[%clk 0:00:41]}
1